fUST/lending_fUST_20250209
["ID","MTS","AMOUNT","RATE_DAILY","PERIOD"]
[352351165,1739052645438,-500.0,0.00011369,2]
[352351166,1739052645448,-289.09,0.00011369,2]
[352351167,1739052645458,-500.0,0.00011369,2]
[352351169,1739052645468,-500.0,0.00011369,2]
[352351170,1739052645478,-976.13,0.00011369,2]
[352351171,1739052645487,-500.0,0.00011369,2]
[352351172,1739052645497,-10167.05,0.00011369,2]
[352351173,1739052645507,-500.0,0.00011369,2]
[352351174,1739052645517,-500.0,0.00011369,2]
[352351175,1739052645526,-533.66,0.00011369,2]
[352351176,1739052645536,-961.01,0.00011369,2]
[352351177,1739052645546,-500.0,0.00011369,2]
[352351178,1739052645555,-151.0,0.00011369,2]
[352351179,1739052645564,-1945.55,0.00011369,2]
[352351180,1739052645573,-1819.01,0.00011369,2]
[352351181,1739052645583,-4936.47,0.00011369,2]
[352351182,1739052645595,-500.0,0.00011369,2]
[352351183,1739052645604,-500.0,0.00011369,2]
[352351184,1739052645614,-500.0,0.00011369,2]
[352351185,1739052645623,-892.83,0.00011369,2]
[352351186,1739052645632,-986.2,0.00011369,2]
[352351187,1739052645641,-500.0,0.00011369,2]
[352351188,1739052645652,-500.0,0.00011369,2]
[352351189,1739052645662,-500.0,0.00011369,2]
[352351190,1739052645671,-500.0,0.00011369,2]
[352351191,1739052645682,-1773.38,0.00011369,2]
[352351192,1739052645692,-871.32,0.00011369,2]
[352351193,1739052645701,-500.0,0.00011369,2]
[352351194,1739052645711,-2123.8,0.00011369,2]
[352351195,1739052645721,-500.0,0.00011369,2]
[352351196,1739052645731,-500.0,0.00011369,2]
[352351197,1739052645740,-500.0,0.00011369,2]
[352351198,1739052645750,-500.0,0.00011369,2]
[352351199,1739052645759,-500.0,0.00011369,2]
[352351200,1739052645768,-640.46975893,0.00011369,2]
[352351201,1739052645778,-904.63,0.00011369,2]
[352351202,1739052645787,-500.0,0.00011369,2]
[352351203,1739052645796,-500.0,0.00011369,2]
[352351204,1739052645805,-500.0,0.00011369,2]
[352351205,1739052645814,-2020.77,0.00011369,2]
[352351206,1739052645823,-715.99,0.00011369,2]
[352351207,1739052645832,-500.0,0.00011369,2]
[352351208,1739052645841,-500.0,0.00011369,2]
[352351209,1739052645851,-1859.68,0.00011369,2]
[352351210,1739052645860,-151.0,0.00011369,2]
[352351211,1739052645869,-500.0,0.00011369,2]
[352351212,1739052645879,-500.0,0.00011369,2]
[352351213,1739052645888,-2869.44,0.00011369,2]
[352351214,1739052645897,-500.0,0.00011369,2]
[352351215,1739052645906,-745.5,0.00011369,2]
[352351216,1739052645915,-344.92397539,0.00011369,2]
[352351217,1739052645924,-8608.01,0.00011369,2]
[352351218,1739052645934,-500.0,0.00011369,2]
[352351219,1739052645943,-1039.13,0.00011369,2]
[352351220,1739052645953,-500.0,0.00011369,2]
[352351221,1739052645963,-642.4,0.00011369,2]
[352351222,1739052645972,-733.69,0.00011369,2]
[352351223,1739052645982,-283.398644,0.00011369,2]
[352351224,1739052645991,-480.433557,0.00011369,2]
[352351225,1739052646001,-283.398644,0.00011369,2]
[352351226,1739052646010,-443.388756,0.00011369,2]
[352351227,1739052646021,-500.0,0.00011369,2]
[352351228,1739052646032,-655.78,0.00011369,2]
[352351229,1739052646041,-480.433557,0.00011369,2]
[352351230,1739052646050,-500.0,0.00011369,2]
[352351231,1739052646059,-1111.700872,0.00011369,2]
[352351232,1739052646069,-443.388756,0.00011369,2]
[352351233,1739052646079,-509.33,0.00011369,2]
[352351234,1739052646089,-154.5736464,0.000114,2]
[352351235,1739052646098,-215.7975175,0.00011425,2]
[352351236,1739052646109,-215.7975175,0.00011425,2]
[352351237,1739052646118,-215.7975175,0.00011425,2]
[352351238,1739052646128,-215.7975175,0.00011425,2]
[352351239,1739052646140,-215.7975175,0.00011425,2]
[352351240,1739052646151,-215.7975175,0.00011425,2]
[352351241,1739052646162,-215.7975175,0.00011425,2]
[352351242,1739052646172,-151.0,0.00011425,2]
[352351243,1739052646182,-151.0,0.00011425,2]
[352351244,1739052646192,-151.0,0.00011425,2]
[352351245,1739052646202,-500.0,0.00011479,2]
[352351246,1739052646213,-500.0,0.00011479,2]
[352351247,1739052646225,-354.7727591,0.000115,2]
[352351248,1739052646235,-153.0,0.000115,2]
[352351249,1739052646244,-709.5455182,0.000115,2]
[352351250,1739052646253,-154.5736464,0.000115,2]
[352351251,1739052646262,-153.0,0.000115,2]
[352351252,1739052646274,-154.5736464,0.000115,2]
[352351253,1739052646283,-254.743765,0.00011506,2]
[352351254,1739052646292,-254.743765,0.00011506,2]
[352351255,1739052646302,-500.0,0.00011506,2]
[352351256,1739052646311,-555.24645535,0.00011506,2]
[352351257,1739052646321,-626.0,0.00011506,2]
[352351258,1739052646331,-731.02,0.00011506,2]
[352351259,1739052646340,-764.93,0.00011506,2]
[352351260,1739052646350,-500.0,0.00011506,2]
[352351261,1739052646359,-252.07,0.00011506,2]
[352351262,1739052646369,-532.53,0.00011506,2]
[352351263,1739052646378,-705.36,0.00011506,2]
[352351264,1739052646387,-500.0,0.00011506,2]
[352351265,1739052646397,-500.0,0.00011506,2]
[352351266,1739052646406,-615.88,0.00011506,2]
[352351267,1739052646417,-500.0,0.00011506,2]
[352351268,1739052646426,-500.0,0.00011506,2]
[352351269,1739052646435,-151.0,0.00011506,2]
[352351270,1739052646445,-151.0,0.00011506,2]
[352351271,1739052646454,-228.279158,0.00011506,2]
[352351272,1739052646463,-500.0,0.00011506,2]
[352351273,1739052646473,-500.0,0.00011506,2]
[352351274,1739052646483,-637.71,0.00011506,2]
[352351275,1739052646492,-270.005358,0.00011506,2]
[352351276,1739052646502,-270.005358,0.00011506,2]
[352351277,1739052646516,-500.0,0.00011506,2]
[352351278,1739052646526,-500.0,0.00011506,2]
[352351279,1739052646536,-500.0,0.00011506,2]
[352351280,1739052646547,-500.0,0.00011506,2]
[352351281,1739052646558,-500.0,0.00011506,2]
[352351282,1739052646567,-811.653379,0.00011506,2]
[352351283,1739052646576,-811.653379,0.00011506,2]
[352351284,1739052646589,-535.35,0.00011506,2]
[352351285,1739052646598,-689.85,0.00011506,2]
[352351286,1739052646607,-500.0,0.00011506,2]
[352351287,1739052646618,-249.531378,0.00011506,2]
[352351288,1739052646627,-249.531378,0.00011506,2]
[352351289,1739052646636,-22230.14,0.00011506,2]
[352351290,1739052646645,-500.0,0.00011506,2]
[352351291,1739052646654,-621.31,0.00011506,2]
[352351292,1739052646664,-1281.11,0.00011506,2]
[352351293,1739052646674,-2574.06,0.00011506,2]
[352351294,1739052646684,-500.0,0.00011506,2]
[352351295,1739052646693,-500.0,0.00011506,2]
[352351296,1739052646703,-979.79,0.00011506,2]
[352351297,1739052646714,-856.96,0.00011506,2]
[352351298,1739052646724,-500.0,0.00011506,2]
[352351299,1739052646733,-915.74,0.00011506,2]
[352351300,1739052646742,-578.63,0.00011506,2]
[352351301,1739052646751,-500.0,0.00011506,2]
[352351302,1739052646760,-650.39,0.00011506,2]
[352351303,1739052646770,-163.45,0.00011506,2]
[352351304,1739052646779,-500.0,0.00011506,2]
[352351305,1739052646788,-775.46,0.00011506,2]
[352351306,1739052646798,-461.35533772,0.00011506,2]
[352351307,1739052646807,-500.0,0.00011506,2]
[352351308,1739052646818,-500.0,0.00011506,2]
[352351309,1739052646829,-976.13,0.00011506,2]
[352351310,1739052646838,-500.0,0.00011506,2]
[352351311,1739052646848,-10167.05,0.00011506,2]
[352351312,1739052646857,-500.0,0.00011506,2]
[352351313,1739052646867,-500.0,0.00011506,2]
[352351314,1739052646876,-961.01,0.00011506,2]
[352351315,1739052646885,-500.0,0.00011506,2]
[352351316,1739052646895,-1945.55,0.00011506,2]
[352351317,1739052646904,-1819.01,0.00011506,2]
[352351318,1739052646913,-4936.47,0.00011506,2]
[352351319,1739052646923,-500.0,0.00011506,2]
[352351320,1739052646933,-500.0,0.00011506,2]
[352351321,1739052646943,-892.83,0.00011506,2]
[352351322,1739052646952,-986.2,0.00011506,2]
[352351323,1739052646962,-500.0,0.00011506,2]
[352351324,1739052646972,-500.0,0.00011506,2]
[352351325,1739052646981,-500.0,0.00011506,2]
[352351326,1739052646991,-500.0,0.00011506,2]
[352351327,1739052647001,-1773.38,0.00011506,2]
[352351328,1739052647010,-871.32,0.00011506,2]
[352351329,1739052647020,-500.0,0.00011506,2]
[352351330,1739052647030,-2123.8,0.00011506,2]
[352351331,1739052647041,-500.0,0.00011506,2]
[352351332,1739052647054,-500.0,0.00011506,2]
[352351333,1739052647064,-500.0,0.00011506,2]
[352351334,1739052647074,-500.0,0.00011506,2]
[352351335,1739052647084,-500.0,0.00011506,2]
[352351336,1739052647094,-904.63,0.00011506,2]
[352351337,1739052647104,-500.0,0.00011506,2]
[352351338,1739052647114,-500.0,0.00011506,2]
[352351339,1739052647124,-336.34060553,0.00011506,2]
[352351340,1739052647134,-2020.77,0.00011506,2]
[352351341,1739052647143,-715.99,0.00011506,2]
[352351342,1739052647153,-500.0,0.00011506,2]
[352351343,1739052647162,-500.0,0.00011506,2]
[352351344,1739052647173,-1859.68,0.00011506,2]
[352351345,1739052647185,-500.0,0.00011506,2]
[352351346,1739052647195,-500.0,0.00011506,2]
[352351347,1739052647206,-2869.44,0.00011506,2]
[352351348,1739052647329,-500.0,0.00011506,2]
[352351349,1739052647354,-745.5,0.00011506,2]
[352351350,1739052647364,-8608.01,0.00011506,2]
[352351351,1739052647374,-500.0,0.00011506,2]
[352351352,1739052647383,-1039.13,0.00011506,2]
[352351353,1739052647392,-642.4,0.00011506,2]
[352351354,1739052647402,-733.69,0.00011506,2]
[352351355,1739052647411,-500.0,0.00011506,2]
[352351356,1739052647420,-655.78,0.00011506,2]
[352351357,1739052647430,-500.0,0.00011506,2]
[352351358,1739052647440,-254.743765,0.0001152,2]
[352351359,1739052647450,-254.743765,0.0001152,2]
[352351360,1739052647461,-153.0,0.000116,2]
[352351361,1739052647471,-153.0,0.000116,2]
[352351362,1739052647480,-153.0,0.000116,2]
[352351363,1739052647490,-500.0,0.00011643,2]
[352351364,1739052647500,-731.02,0.00011643,2]
[352351365,1739052647510,-764.93,0.00011643,2]
[352351366,1739052647524,-532.53,0.00011643,2]
[352351367,1739052647534,-705.36,0.00011643,2]
[352351368,1739052647544,-500.0,0.00011643,2]
[352351369,1739052647554,-446.36257594,0.00011643,2]
[352351370,1739052647564,-615.88,0.00011643,2]
[352351371,1739052647574,-500.0,0.00011643,2]
[352351372,1739052647583,-500.0,0.00011643,2]
[352351373,1739052647594,-500.0,0.00011643,2]
[352351374,1739052647603,-500.0,0.00011643,2]
[352351375,1739052647613,-637.71,0.00011643,2]
[352351376,1739052647622,-270.005358,0.00011643,2]
[352351377,1739052647632,-270.005358,0.00011643,2]
[352351378,1739052647642,-500.0,0.00011643,2]
[352351379,1739052647652,-500.0,0.00011643,2]
[352351380,1739052647661,-500.0,0.00011643,2]
[352351381,1739052647671,-500.0,0.00011643,2]
[352351382,1739052647680,-500.0,0.00011643,2]
[352351383,1739052647690,-811.653379,0.00011643,2]
[352351384,1739052647700,-811.653379,0.00011643,2]
[352351385,1739052647710,-535.35,0.00011643,2]
[352351386,1739052647719,-151.0,0.00011643,2]
[352351387,1739052647729,-689.85,0.00011643,2]
[352351388,1739052647739,-151.0,0.00011643,2]
[352351389,1739052647748,-151.0,0.00011643,2]
[352351390,1739052647758,-500.0,0.00011643,2]
[352351391,1739052647768,-151.0,0.00011643,2]
[352351392,1739052647778,-249.531378,0.00011643,2]
[352351393,1739052647788,-249.531378,0.00011643,2]
[352351394,1739052647798,-22230.14,0.00011643,2]
[352351395,1739052647809,-500.0,0.00011643,2]
[352351396,1739052647819,-621.31,0.00011643,2]
[352351397,1739052647830,-28.2904466,0.00011643,2]
[352351400,1739053553123,-201.9337974,0.00010086,2]
[352351401,1739053553143,-229.2446605,0.00010163,2]
[352351402,1739053553164,-126.6320741,0.00010685,2]
[352351403,1739053644099,-273.3679259,0.00010685,2]
[352351404,1739053644119,-370.43185413,0.00010782,2]
[352351405,1739053644141,-300.0,0.00010956,2]
[352351406,1739053644163,-379.07715787,0.00010957,2]
[352351407,1739053644184,-500.0,0.00010957,2]
[352351408,1739053644206,-500.0,0.00010957,2]
[352351409,1739053644227,-189.13752448,0.00010957,2]
[352351410,1739053644251,-500.0,0.00010957,2]
[352351411,1739053644273,-500.0,0.00010957,2]
[352351412,1739053644294,-500.0,0.00010957,2]
[352351413,1739053644314,-500.0,0.00010957,2]
[352351414,1739053644334,-495.73761502,0.00010957,2]
[352351415,1739053644356,-500.0,0.00010957,2]
[352351416,1739053644377,-500.0,0.00010957,2]
[352351417,1739053644398,-500.0,0.00010957,2]
[352351418,1739053644419,-500.0,0.00010957,2]
[352351419,1739053644441,-500.0,0.00010957,2]
[352351420,1739053644463,-600.0,0.00010957,2]
[352351421,1739053644484,-500.0,0.00010957,2]
[352351422,1739053644507,-500.0,0.00010957,2]
[352351423,1739053644529,-587.40457029,0.00010957,2]
[352351424,1739053644551,-500.0,0.00010957,2]
[352351425,1739053644574,-500.0,0.00010957,2]
[352351426,1739053644598,-500.0,0.00010957,2]
[352351427,1739053644621,-500.0,0.00010957,2]
[352351428,1739053644644,-500.0,0.00010957,2]
[352351429,1739053644667,-500.0,0.00010957,2]
[352351430,1739053644690,-500.0,0.00010957,2]
[352351431,1739053644714,-500.0,0.00010957,2]
[352351432,1739053644737,-500.0,0.00010957,2]
[352351433,1739053644759,-500.0,0.00010957,2]
[352351434,1739053644782,-500.0,0.00010957,2]
[352351435,1739053644806,-500.0,0.00010957,2]
[352351436,1739053644830,-500.0,0.00010957,2]
[352351437,1739053644853,-500.0,0.00010957,2]
[352351438,1739053644876,-587.74415883,0.00010957,2]
[352351439,1739053644903,-500.0,0.00010958,2]
[352351440,1739053644924,-500.0,0.00010958,2]
[352351441,1739053644946,-500.0,0.00010958,2]
[352351442,1739053644968,-500.0,0.00010958,2]
[352351443,1739053644990,-500.0,0.00010958,2]
[352351444,1739053645012,-500.0,0.00010958,2]
[352351445,1739053645034,-500.0,0.00010958,2]
[352351446,1739053645055,-446.16262195,0.00010958,2]
[352351447,1739053645076,-500.0,0.00010958,2]
[352351448,1739053645097,-500.0,0.00010958,2]
[352351449,1739053645119,-500.0,0.00010958,2]
[352351450,1739053645141,-500.0,0.00010958,2]
[352351451,1739053645162,-269.77713689,0.00010958,2]
[352351526,1739053832486,-300.0,0.00010957,2]
[352351558,1739053832496,-474.58636919,0.00010958,2]
[352351561,1739053832752,-500.0,0.00010958,2]
[352351564,1739053832767,-500.0,0.00010958,2]
[352351566,1739053832777,-500.0,0.00010958,2]
[352351568,1739053832786,-500.0,0.00010958,2]
[352351570,1739053832796,-500.0,0.00010958,2]
[352351572,1739053832805,-500.0,0.00010958,2]
[352351573,1739053832814,-500.0,0.00010958,2]
[352351575,1739053832823,-500.0,0.00010958,2]
[352351577,1739053832833,-500.0,0.00010958,2]
[352351580,1739053832843,-500.0,0.00010958,2]
[352351581,1739053832852,-500.0,0.00010958,2]
[352351584,1739053832861,-500.0,0.00010958,2]
[352351585,1739053832870,-500.0,0.00010958,2]
[352351588,1739053832880,-500.0,0.00010958,2]
[352351589,1739053832889,-391.88252646,0.00010958,2]
[352351591,1739053832899,-500.0,0.00010958,2]
[352351594,1739053832909,-876.85,0.00010958,2]
[352351596,1739053832919,-500.0,0.00010958,2]
[352351597,1739053832928,-500.0,0.00010958,2]
[352351599,1739053832938,-503.97109054,0.00010958,2]
[352351602,1739053832952,-950.13,0.00010958,2]
[352351604,1739053832961,-163.30160316,0.00010958,2]
[352351606,1739053832971,-500.0,0.00010958,2]
[352351608,1739053832980,-512.72772952,0.00010958,2]
[352351610,1739053832991,-500.0,0.00010958,2]
[352351612,1739053833000,-500.0,0.00010958,2]
[352351614,1739053833010,-500.0,0.00010958,2]
[352351616,1739053833019,-500.0,0.00010958,2]
[352351618,1739053833030,-500.0,0.00010958,2]
[352351620,1739053833039,-502.54081061,0.00010958,2]
[352351622,1739053833049,-500.0,0.00010958,2]
[352351624,1739053833059,-500.0,0.00010958,2]
[352351626,1739053833070,-500.0,0.00010958,2]
[352351628,1739053833080,-555.11,0.00010958,2]
[352351630,1739053833090,-820.39,0.00010958,2]
[352351632,1739053833099,-500.0,0.00010958,2]
[352351634,1739053833109,-500.0,0.00010958,2]
[352351636,1739053833119,-500.0,0.00010958,2]
[352351638,1739053833129,-500.0,0.00010958,2]
[352351640,1739053833138,-500.0,0.00010958,2]
[352351642,1739053833148,-500.0,0.00010958,2]
[352351644,1739053833158,-631.51408497,0.00010958,2]
[352351646,1739053833168,-500.0,0.00010958,2]
[352351648,1739053833178,-500.0,0.00010958,2]
[352351650,1739053833187,-500.0,0.00010958,2]
[352351652,1739053833197,-500.0,0.00010958,2]
[352351654,1739053833207,-259.82679035,0.00010958,2]
[352351656,1739053833216,-694.45,0.00010958,2]
[352351658,1739053833225,-500.0,0.00010958,2]
[352351660,1739053833235,-500.0,0.00010958,2]
[352351662,1739053833245,-500.0,0.00010958,2]
[352351664,1739053833254,-500.0,0.00010958,2]
[352351666,1739053833264,-533.1,0.00010958,2]
[352351668,1739053833273,-500.0,0.00010958,2]
[352351670,1739053833284,-500.0,0.00010958,2]
[352351671,1739053833294,-500.0,0.00010958,2]
[352351673,1739053833303,-500.0,0.00010958,2]
[352351675,1739053833313,-500.0,0.00010958,2]
[352351677,1739053833323,-500.0,0.00010958,2]
[352351679,1739053833334,-500.0,0.00010958,2]
[352351681,1739053833344,-500.0,0.00010958,2]
[352351683,1739053833354,-500.0,0.00010958,2]
[352351685,1739053833364,-510.30258903,0.00010958,2]
[352351687,1739053833373,-503.66489458,0.00010958,2]
[352351689,1739053833382,-500.0,0.00010958,2]
[352351691,1739053833392,-500.0,0.00010958,2]
[352351693,1739053833401,-500.0,0.00010958,2]
[352351695,1739053833411,-500.0,0.00010958,2]
[352351697,1739053833420,-502.52711191,0.00010958,2]
[352351699,1739053833429,-500.0,0.00010958,2]
[352351701,1739053833439,-500.0,0.00010958,2]
[352351703,1739053833448,-500.0,0.00010958,2]
[352351705,1739053833457,-500.0,0.00010958,2]
[352351707,1739053833466,-500.0,0.00010958,2]
[352351709,1739053833476,-500.0,0.00010958,2]
[352351711,1739053833485,-500.0,0.00010958,2]
[352351713,1739053833494,-500.0,0.00010958,2]
[352351715,1739053833503,-500.0,0.00010958,2]
[352351717,1739053833513,-500.0,0.00010958,2]
[352351719,1739053833523,-500.0,0.00010958,2]
[352351721,1739053833533,-500.0,0.00010958,2]
[352351723,1739053833542,-500.0,0.00010958,2]
[352351725,1739053833551,-500.0,0.00010958,2]
[352351727,1739053833562,-500.0,0.00010958,2]
[352351728,1739053833571,-500.0,0.00010958,2]
[352351730,1739053833581,-500.0,0.00010958,2]
[352351732,1739053833590,-500.0,0.00010958,2]
[352351734,1739053833600,-500.0,0.00010958,2]
[352351736,1739053833609,-500.0,0.00010958,2]
[352351738,1739053833619,-724.76,0.00010958,2]
[352351739,1739053833628,-500.0,0.00010958,2]
[352351740,1739053833637,-500.0,0.00010958,2]
[352351741,1739053833646,-500.0,0.00010958,2]
[352351742,1739053833657,-500.0,0.00010958,2]
[352351744,1739053833667,-500.0,0.00010958,2]
[352351746,1739053833676,-500.0,0.00010958,2]
[352351748,1739053833686,-500.0,0.00010958,2]
[352351750,1739053833696,-500.0,0.00010958,2]
[352351752,1739053833706,-500.0,0.00010958,2]
[352351754,1739053833715,-500.0,0.00010958,2]
[352351756,1739053833725,-500.0,0.00010958,2]
[352351758,1739053833735,-500.0,0.00010958,2]
[352351760,1739053833745,-500.0,0.00010958,2]
[352351762,1739053833754,-500.0,0.00010958,2]
[352351764,1739053833764,-500.0,0.00010958,2]
[352351766,1739053833774,-500.0,0.00010958,2]
[352351768,1739053833783,-500.0,0.00010958,2]
[352351770,1739053833793,-500.0,0.00010958,2]
[352351772,1739053833802,-500.0,0.00010958,2]
[352351774,1739053833812,-582.77,0.00010958,2]
[352351776,1739053833821,-500.0,0.00010958,2]
[352351778,1739053833831,-500.0,0.00010958,2]
[352351780,1739053833844,-500.0,0.00010958,2]
[352351782,1739053833854,-500.0,0.00010958,2]
[352351784,1739053833864,-500.0,0.00010958,2]
[352351785,1739053833874,-500.0,0.00010958,2]
[352351787,1739053833884,-500.0,0.00010958,2]
[352351789,1739053833893,-500.0,0.00010958,2]
[352351791,1739053833903,-500.0,0.00010958,2]
[352351793,1739053833912,-868.97,0.00010958,2]
[352351795,1739053833922,-0.65849917,0.00010958,2]
[352351797,1739053833936,-499.34150083,0.00010958,2]
[352351799,1739053833948,-553.17055382,0.00010958,2]
[352351801,1739053833960,-500.0,0.00010958,2]
[352351803,1739053833969,-500.0,0.00010958,2]
[352351805,1739053833979,-500.0,0.00010958,2]
[352351807,1739053833988,-500.0,0.00010958,2]
[352351809,1739053833999,-506.40219388,0.00010958,2]
[352351811,1739053834009,-500.0,0.00010958,2]
[352351813,1739053834019,-500.0,0.00010958,2]
[352351815,1739053834031,-500.0,0.00010958,2]
[352351817,1739053834042,-500.0,0.00010958,2]
[352351819,1739053834051,-1331.77179484,0.00010958,2]
[352351858,1739053834415,-311.51684575,0.00010958,2]
[352351935,1739053838206,-500.0,0.00010958,2]
[352351937,1739053838216,-796.22,0.00010958,2]
[352351939,1739053838225,-500.0,0.00010958,2]
[352351941,1739053838234,-621.31,0.00010958,2]
[352351943,1739053838243,-500.0,0.00010958,2]
[352351945,1739053838253,-500.0,0.00010958,2]
[352351947,1739053838262,-1125.62,0.00010958,2]
[352351949,1739053838271,-578.63,0.00010958,2]
[352351951,1739053838280,-500.0,0.00010958,2]
[352351953,1739053838290,-500.0,0.00010958,2]
[352351955,1739053838299,-500.0,0.00010958,2]
[352351957,1739053838309,-500.0,0.00010958,2]
[352351959,1739053838319,-500.0,0.00010958,2]
[352351961,1739053838328,-1061.58,0.00010958,2]
[352351963,1739053838337,-985.57,0.00010958,2]
[352351965,1739053838346,-985.57,0.00010958,2]
[352351967,1739053838356,-985.57,0.00010958,2]
[352351969,1739053838365,-985.57,0.00010958,2]
[352351971,1739053838375,-985.57,0.00010958,2]
[352351973,1739053838384,-985.57,0.00010958,2]
[352351975,1739053838393,-985.57,0.00010958,2]
[352351977,1739053838403,-985.57,0.00010958,2]
[352351979,1739053838412,-985.57,0.00010958,2]
[352351981,1739053838422,-500.0,0.00010958,2]
[352351983,1739053838431,-205.52476633,0.00010958,2]
[352351985,1739053838441,-500.0,0.00010958,2]
[352351987,1739053838450,-500.0,0.00010958,2]
[352351988,1739053838459,-3001.88,0.00010958,2]
[352351989,1739053838468,-500.0,0.00010958,2]
[352351990,1739053838478,-429.87078119,0.00010958,2]
[352351992,1739053838487,-1106.85,0.00010958,2]
[352351994,1739053838497,-839.75,0.00010958,2]
[352351996,1739053838506,-500.0,0.00010958,2]
[352351998,1739053838516,-500.0,0.00010958,2]
[352352000,1739053838525,-500.0,0.00010958,2]
[352352002,1739053838535,-1121.97,0.00010958,2]
[352352004,1739053838544,-500.0,0.00010958,2]
[352352006,1739053838554,-500.0,0.00010958,2]
[352352008,1739053838563,-500.0,0.00010958,2]
[352352010,1739053838572,-500.0,0.00010958,2]
[352352012,1739053838581,-500.0,0.00010958,2]
[352352014,1739053838591,-500.0,0.00010958,2]
[352352015,1739053838601,-500.0,0.00010958,2]
[352352018,1739053838616,-500.0,0.00010958,2]
[352352019,1739053838626,-500.0,0.00010958,2]
[352352021,1739053838635,-500.0,0.00010958,2]
[352352023,1739053838646,-500.0,0.00010958,2]
[352352025,1739053838655,-500.0,0.00010958,2]
[352352028,1739053838665,-500.0,0.00010958,2]
[352352030,1739053838674,-500.0,0.00010958,2]
[352352031,1739053838684,-500.0,0.00010958,2]
[352352034,1739053838694,-2131.55,0.00010958,2]
[352352036,1739053838703,-500.0,0.00010958,2]
[352352038,1739053838712,-500.0,0.00010958,2]
[352352040,1739053838721,-1038.66,0.00010958,2]
[352352042,1739053838731,-636.61,0.00010958,2]
[352352043,1739053838740,-500.0,0.00010958,2]
[352352046,1739053838750,-5468.34,0.00010958,2]
[352352048,1739053838759,-500.0,0.00010958,2]
[352352049,1739053838768,-500.0,0.00010958,2]
[352352052,1739053838778,-2011.74,0.00010958,2]
[352352054,1739053838788,-500.0,0.00010958,2]
[352352056,1739053838797,-190.74,0.00010958,2]
[352352058,1739053838807,-500.0,0.00010958,2]
[352352060,1739053838816,-500.0,0.00010958,2]
[352352062,1739053838825,-500.0,0.00010958,2]
[352352064,1739053838835,-500.0,0.00010958,2]
[352352066,1739053838844,-500.0,0.00010958,2]
[352352068,1739053838853,-1132.03,0.00010958,2]
[352352070,1739053838863,-500.0,0.00010958,2]
[352352072,1739053838872,-591.08176997,0.00010958,2]
[352352074,1739053838882,-471.4,0.00010958,2]
[352352076,1739053838891,-500.0,0.00010958,2]
[352352078,1739053838900,-500.0,0.00010958,2]
[352352080,1739053838910,-500.0,0.00010958,2]
[352352082,1739053838919,-2336.66,0.00010958,2]
[352352084,1739053838929,-500.0,0.00010958,2]
[352352086,1739053838938,-500.0,0.00010958,2]
[352352088,1739053838950,-199.83306714,0.00010958,2]
[352352090,1739053838960,-2271.98,0.00010958,2]